bitfinex/quotes_ETHUSD_20240721
["timestamp","ask_amount","ask_price","bid_price","bid_amount"]
[1721580454245,0.7149,3509.3,3506.3,5.24268]
[1721580454246,1.99755335,3509.0,3506.3,5.24268]
[1721580454418,2.85091,3507.7,3505.7,3.0]
[1721580454622,0.285091,3507.6,3505.7,2.85242]
[1721580454930,0.7149,3508.0,3506.0,2.85221]
[1721580455124,0.0669927,3507.5,3505.7,2.85242]
[1721580455331,2.85073,3507.9,3505.9,2.85231]
[1721580455657,0.7149,3508.0,3505.9,2.85231]
[1721580455658,3.0,3507.8,3505.9,2.85232]
[1721580455810,3.0,3507.8,3506.3,2.85198]
[1721580455811,0.37149,3507.7,3506.3,2.85198]
[1721580456012,3.7149,3508.0,3506.0,0.285232]
[1721580456353,0.0669301,3507.9,3506.0,0.285232]
[1721580456509,5.9176801,3507.9,3506.0,0.285232]
[1721580456710,2.85082,3507.8,3506.0,0.285232]
[1721580457052,3.0669026,3507.7,3505.7,2.85248]
[1721580457248,0.0669026,3507.7,3505.6,2.3907]
[1721580457457,0.0669026,3507.7,3505.9,3.01220676]
[1721580457609,3.14742335,3509.0,3505.9,3.01220676]
[1721580457610,3.14742335,3509.0,3507.3,2.85118]
[1721580457824,3.14742335,3509.0,3507.6,2.85092]
[1721580457825,0.0624187,3508.9,3507.6,2.85092]
[1721580458023,0.0624187,3508.9,3507.7,2.85085]
[1721580458224,0.0624187,3508.9,3507.8,2.77318]
[1721580458637,0.29755335,3509.0,3507.8,2.77318]
[1721580459177,0.0624601,3508.9,3507.8,2.77318]
[1721580459380,0.0624601,3508.9,3507.7,0.285085]
[1721580459381,0.0624601,3508.9,3507.9,3.4007]
[1721580459541,0.152538,3509.2,3508.6,2.423]
[1721580459723,0.152538,3509.2,3509.0,2.84979]
[1721580459929,0.00918155,3510.3,3509.1,2.84967]
[1721580460223,0.06048867,3510.2,3508.7,0.2423]
[1721580460430,2.85794155,3510.3,3508.7,0.2423]
[1721580460735,0.06048867,3510.2,3509.0,2.8498]
[1721580461136,0.06048867,3510.2,3509.6,2.84931]
[1721580461348,0.00918155,3510.3,3509.7,2.84921]
[1721580461529,0.00918155,3510.3,3509.8,2.423]
[1721580461729,0.00918155,3510.3,3510.2,2.84884]
[1721580461975,0.00918155,3510.3,3510.2,6.24768]
[1721580462183,0.00918155,3510.3,3510.2,6.56197301]
[1721580462338,1.7474,3512.6,3510.2,6.56197301]
[1721580462339,0.7149,3513.0,3510.9,2.84821]
[1721580462683,0.7149,3513.0,3510.2,6.71313301]
[1721580462684,2.84755,3511.8,3510.2,3.86429301]
[1721580462906,2.84762,3511.7,3510.2,3.71312301]
[1721580463062,2.84772,3511.6,3510.2,3.71310301]
[1721580463257,0.06082714,3511.7,3510.3,0.527385]
[1721580463505,0.06093427,3511.5,3510.4,2.84867]
[1721580463793,0.06093427,3511.5,3510.3,0.527385]
[1721580463794,2.84763,3511.7,3510.3,0.527385]
[1721580464004,0.29783175,3512.0,3509.8,5.27209]
[1721580464005,2.84796,3511.3,3509.8,2.423]
[1721580464168,2.84847,3510.7,3509.8,2.423]
[1721580464353,2.84847,3510.7,3509.0,5.27278]
[1721580464559,2.84863,3510.5,3509.0,2.423]
[1721580464766,2.84847,3510.7,3509.0,2.423]
[1721580464968,1.99783175,3512.0,3510.0,2.84895]
[1721580464969,3.0,3511.4,3510.0,2.84895]
[1721580465169,0.35,3511.8,3510.4,2.84866]
[1721580465469,2.84747,3511.9,3510.4,2.84866]
[1721580465673,0.06130363,3511.7,3510.5,2.84859]
[1721580466001,0.29783175,3512.0,3510.4,2.84867]
[1721580466200,0.29783175,3512.0,3511.2,2.84794]
[1721580466371,0.29783175,3512.0,3511.3,2.84793]
[1721580466571,0.06130363,3511.9,3511.1,2.84808]
[1721580466774,0.29777542,3512.4,3511.1,2.84808]
[1721580466963,0.0593674,3512.3,3511.8,2.84748]
[1721580467163,0.152538,3512.7,3511.8,2.84748]
[1721580467370,0.152538,3512.7,3512.2,2.84714]
[1721580467584,3.56054,3514.2,3512.3,2.84706]
[1721580467585,2.846,3513.7,3512.3,2.84706]
[1721580467877,0.05767262,3513.6,3512.3,2.84706]
[1721580468105,0.35536168,3513.6,3512.4,0.55]
[1721580468303,0.05767262,3513.6,3512.5,0.339706]
[1721580468505,0.05767262,3513.6,3512.4,0.55]
[1721580468662,2.84601,3513.7,3512.4,0.55]
[1721580469208,2.8465,3513.1,3512.1,0.55]
[1721580469410,2.84665,3512.9,3512.0,2.3826]
[1721580469714,3.14353445,3513.9,3511.7,0.31735931]
[1721580469715,2.84754,3511.9,3511.7,0.31735931]
[1721580470019,2.84754,3511.8,3511.7,0.31735931]
[1721580470327,5.75315961,3511.8,3511.7,0.31735931]
[1721580470603,8.75315961,3511.8,3511.7,0.31735931]
[1721580470779,0.05807961,3511.8,3511.7,0.31735931]
[1721580471190,3.0,3512.3,3511.7,0.31735931]
[1721580471582,0.05770964,3512.2,3511.7,0.31735931]
[1721580471766,2.84667,3512.9,3511.7,0.63388024]
[1721580471966,2.84688,3512.7,3511.7,0.31735931]
[1721580472233,0.05756587,3512.8,3511.7,0.31735931]
[1721580472520,2.84722,3512.2,3511.7,0.31735931]
[1721580472669,2.84707,3512.4,3511.7,0.31735931]
[1721580472867,0.05770506,3512.1,3511.7,0.31735931]
[1721580473082,2.8468,3512.8,3511.7,0.31735931]
[1721580473281,3.28468,3512.7,3511.7,0.31735931]
[1721580473581,0.05770506,3512.7,3511.8,3.39747]
[1721580473778,3.0,3513.0,3511.8,3.71482931]
[1721580474003,3.0,3513.0,3511.9,2.84742]
[1721580474311,0.05770506,3512.9,3512.0,2.84736]
[1721580474513,0.05770506,3512.9,3512.5,0.31735931]
[1721580474807,2.84638,3513.3,3512.5,0.31735931]
[1721580474977,2.84582,3514.0,3512.5,0.31735931]
[1721580474978,3.47349596,3513.2,3512.5,0.31735931]
[1721580475567,2.84649,3513.1,3512.3,2.4208]
[1721580475899,0.62708596,3513.2,3512.3,2.4208]
[1721580475900,0.05787018,3513.0,3512.3,2.4208]
[1721580476108,0.05787018,3513.0,3512.3,5.26792]
[1721580476403,0.05787018,3512.9,3512.3,2.4208]
[1721580476626,3.0,3513.4,3512.3,2.4208]
[1721580476790,0.35790842,3513.3,3512.3,2.4208]
[1721580477106,2.90425842,3513.3,3512.3,2.4208]
[1721580477320,3.0,3513.2,3512.6,0.3184948]
[1721580477469,0.05790842,3513.3,3512.6,0.3184948]
[1721580477803,3.0,3513.4,3512.6,0.3184948]
[1721580478039,0.29766445,3513.9,3512.6,0.3184948]
[1721580478040,2.84644,3513.2,3512.6,0.3184948]
[1721580478198,0.29766445,3513.9,3512.6,0.3184948]
[1721580478199,6.13693035,3513.1,3512.6,0.3184948]
[1721580478401,0.0579711,3513.0,3512.6,0.3184948]
[1721580478628,0.05604484,3512.9,3512.6,0.3184948]
[1721580478941,3.0,3513.4,3512.6,0.3184948]
[1721580479106,0.05604484,3512.8,3512.6,0.3184948]
[1721580479301,3.49358445,3513.9,3512.6,0.3184948]
[1721580479302,2.84617,3513.5,3512.6,0.3184948]
[1721580479530,0.05602497,3512.7,3512.6,0.3184948]
[1721580479804,3.0,3513.4,3512.6,0.3184948]
[1721580480112,0.05600204,3513.3,3512.7,0.55]
[1721580480526,2.846,3513.7,3512.6,0.3184948]
[1721580480736,2.84625,3513.4,3512.6,0.3184948]
[1721580480932,2.84642,3513.2,3512.6,0.3184948]
[1721580481136,0.05604177,3513.3,3512.6,0.3184948]
[1721580481310,0.05609221,3513.1,3513.0,2.84656]
[1721580481505,0.05424242,3513.2,3512.8,2.84672]
[1721580481746,2.84472,3515.3,3513.0,0.55]
[1721580481747,2.84509,3514.9,3513.0,0.55]
[1721580481959,2.84554,3514.3,3513.1,0.55]
[1721580482105,2.84535,3514.5,3513.1,0.55]
[1721580482307,2.84561,3514.2,3513.1,0.55]
[1721580482503,0.05424242,3514.4,3513.1,0.55]
[1721580482752,0.29761003,3514.7,3513.0,0.55]
[1721580482753,2.84539,3514.5,3513.0,0.55]
[1721580482908,0.05424242,3514.3,3513.3,2.84626]
[1721580483251,0.05424242,3514.2,3513.5,2.2983]
[1721580483459,0.05424242,3514.2,3513.6,0.55]
[1721580483617,2.8451,3514.9,3513.7,2.84598]
[1721580483943,2.8451,3514.9,3513.6,0.55]
[1721580483944,0.05263548,3514.8,3513.9,2.2983]
[1721580484199,0.05263548,3514.8,3514.2,2.84559]
[1721580484448,0.0487579,3515.7,3514.6,2.84526]
[1721580484608,0.0487579,3515.7,3514.7,0.55]
[1721580484814,0.0487579,3515.7,3514.7,3.39519]
[1721580485013,0.0487579,3515.7,3514.7,0.55]
[1721580485266,0.0487579,3515.7,3514.5,3.55]
[1721580485424,0.0487579,3515.7,3514.8,2.2983]
[1721580485611,0.0487579,3515.7,3514.9,0.55]
[1721580486009,0.0487579,3515.7,3514.8,2.2983]
[1721580486010,2.8447,3515.3,3514.8,2.2983]
[1721580486330,2.8447,3515.3,3512.3,12.47]
[1721580486331,2.84503,3514.9,3513.7,2.2983]
[1721580486550,0.05135702,3515.2,3513.7,2.2983]
[1721580486735,2.8446,3515.5,3513.8,0.52983]
[1721580486736,2.84538,3514.5,3513.8,0.52983]
[1721580487053,2.8452,3514.7,3514.5,0.31832262]
[1721580487350,2.84527,3514.6,3514.5,0.31832262]
[1721580487709,2.84503,3515.0,3514.5,0.31832262]
[1721580488355,2.84525,3514.7,3514.5,0.31832262]
[1721580488556,2.84527,3514.6,3514.5,0.31832262]
[1721580488848,5.69054,3514.6,3514.5,0.31832262]
[1721580489209,2.84527,3514.6,3514.5,0.31832262]
[1721580489939,3.0,3515.1,3514.5,0.31832262]
[1721580490150,2.84471,3515.3,3514.5,0.31832262]
[1721580490461,5.8931679,3515.7,3514.6,2.2983]
[1721580490763,0.0487579,3515.7,3514.7,3.65679226]
[1721580491064,0.0487579,3515.7,3514.7,0.81166226]
[1721580491230,2.996518,3516.2,3514.8,2.84503]
[1721580491560,0.152538,3516.2,3515.0,2.2983]
[1721580491775,0.152538,3516.2,3515.1,0.55]
[1721580491926,0.152538,3516.2,3515.2,0.63983]
[1721580492130,0.152538,3516.2,3515.3,0.55]
[1721580492332,0.152538,3516.2,3515.3,3.3947]
[1721580492572,0.152538,3516.2,3515.7,2.2983]
[1721580492863,0.152538,3516.2,3515.8,0.55]
[1721580493073,0.152538,3516.2,3515.9,0.49270272]
[1721580493379,0.152538,3516.2,3516.0,0.55]
[1721580493577,7.11601,3518.7,3516.0,0.55]
[1721580493578,2.59001791,3516.5,3516.0,0.55]
[1721580493778,2.84359,3516.7,3516.0,0.55]
[1721580494076,2.84358,3516.7,3515.8,0.55]
[1721580494225,0.04983416,3516.6,3515.8,0.86666226]
[1721580494434,2.84358,3516.7,3515.8,0.86666226]
[1721580494749,0.04983416,3516.6,3515.8,0.86666226]
[1721580494952,2.89352416,3516.6,3515.8,0.86666226]
[1721580495147,2.84422,3515.9,3515.7,2.61662262]
[1721580495350,5.6886,3515.8,3515.7,0.31832262]
[1721580495536,8.58299839,3515.8,3515.7,0.31832262]
[1721580495849,8.58299839,3515.8,3512.3,3.7433778]
[1721580495850,2.84495,3515.0,3513.5,2.84613]
[1721580496059,2.84526,3514.7,3513.6,2.2983]
[1721580496274,2.84506,3514.9,3513.6,2.2983]
[1721580496470,5.84476,3515.3,3513.6,2.2983]
[1721580496644,0.04990022,3514.8,3513.6,2.2983]
[1721580496830,3.0,3515.3,3513.6,2.2983]
[1721580497034,2.84511,3514.8,3513.6,2.2983]
[1721580497233,2.84543,3514.4,3513.6,2.2983]
[1721580497452,2.84496,3515.0,3513.6,2.2983]
[1721580497654,0.04983875,3514.3,3513.6,2.2983]
[1721580497845,2.84545,3514.4,3513.6,2.2983]
[1721580498042,5.69178,3513.9,3513.6,2.2983]
[1721580498276,2.84594,3513.8,3513.6,2.2983]
[1721580498486,0.04974958,3513.8,3513.6,2.2983]
[1721580498855,3.0,3514.9,3513.6,5.14436]
[1721580499072,3.0,3514.9,3513.6,2.2983]
[1721580499381,0.0497465,3514.8,3513.9,2.84581]
[1721580499591,0.0497465,3514.8,3514.0,0.284581]
[1721580499890,5.68952,3515.3,3514.0,2.84573]
[1721580500050,0.35,3515.8,3514.1,0.55]
[1721580500387,2.84447,3515.6,3514.2,7.3]
[1721580500538,0.0497465,3515.7,3514.2,7.3]
[1721580500539,2.84508,3514.9,3514.2,7.3]
[1721580500738,2.84508,3514.9,3513.8,7.3]
[1721580500950,2.89495875,3514.8,3513.8,7.3]
[1721580501166,2.84512,3514.8,3513.8,7.3]
[1721580501378,2.89503875,3514.7,3513.8,7.3]
[1721580501688,2.84537,3514.5,3513.9,0.55]
[1721580502036,2.89525954,3514.4,3513.9,0.55]
[1721580502671,0.04980954,3514.4,3513.9,0.55]
[1721580502876,2.84486,3515.1,3513.9,0.55]
[1721580503046,3.0,3515.5,3513.9,0.55]
[1721580503047,0.04814922,3514.3,3513.9,0.55]
[1721580503254,3.0,3515.5,3513.9,0.55]
[1721580503581,0.04814922,3515.4,3514.3,2.8455]
[1721580503745,2.89276922,3515.4,3514.5,2.2607]
[1721580504092,0.04814922,3515.4,3514.7,2.84512]
[1721580504240,0.04814922,3515.4,3514.6,1.48435321]
[1721580504575,2.84441,3515.7,3514.7,0.55]
[1721580504742,0.04792955,3515.3,3514.7,0.55]
[1721580504942,2.84441,3515.7,3514.8,0.58107]
[1721580505146,2.84448,3515.6,3514.9,0.55]
[1721580505344,2.8443,3515.8,3514.9,0.55]
[1721580505640,2.84414,3516.0,3514.9,0.55]
[1721580505840,0.04792955,3515.9,3514.9,0.55]
[1721580506050,5.84365,3516.6,3515.0,0.397617]
[1721580506281,2.89177249,3516.5,3515.1,3.02309293]
[1721580506453,2.84398,3516.2,3514.9,1.13920676]
[1721580506651,2.84377,3516.5,3515.3,2.84469]
[1721580506877,3.04803249,3516.4,3515.4,3.39461]
[1721580507183,3.04803249,3516.4,3515.4,0.55]
[1721580507184,5.89191249,3516.4,3515.4,0.55]
[1721580507366,0.04803249,3516.4,3515.6,2.2607]
[1721580507690,0.0647928,3517.9,3515.7,3.02272432]
[1721580507691,2.84366,3516.6,3515.7,3.02272432]
[1721580507858,0.0647928,3517.9,3515.8,2.4725357]
[1721580507859,2.84349,3516.8,3515.8,2.4725357]
[1721580508043,2.89145571,3516.7,3515.9,0.55]
[1721580508247,0.04783571,3516.7,3515.9,0.55]
[1721580508490,2.84356,3516.8,3515.7,0.55]
[1721580508758,0.0483106,3516.6,3515.8,1.65335929]
[1721580509088,2.84349,3516.8,3515.9,1.53907605]
[1721580509238,2.84349,3516.8,3515.9,0.55]
[1721580509439,2.84333,3517.0,3516.0,0.180349]
[1721580509642,2.84358,3516.7,3516.0,0.180349]
[1721580509890,0.29739669,3517.2,3515.6,2.84990676]
[1721580510089,2.84402,3516.2,3515.6,2.2607]
[1721580510378,2.84342,3516.9,3515.6,2.2607]
[1721580510540,0.00635123,3516.1,3515.6,2.84990676]
[1721580510904,2.84353,3516.8,3515.7,2.47271675]
[1721580511041,2.84353,3516.8,3515.8,3.28942124]
[1721580511245,2.84326,3517.1,3515.9,0.98907204]
[1721580511487,2.84326,3517.1,3516.0,0.55]
[1721580511777,0.29739669,3517.2,3516.1,2.47245673]
[1721580511778,2.84334,3517.0,3516.1,2.47245673]
[1721580511983,2.84334,3517.0,3516.1,0.31582437]
[1721580512181,3.14056669,3517.2,3516.1,0.31582437]
[1721580512182,2.84341,3516.9,3516.1,0.31582437]
[1721580512353,0.29739669,3517.2,3516.1,0.31582437]
[1721580512354,2.84333,3517.0,3516.1,0.31582437]
[1721580513468,0.24739669,3517.2,3516.2,5.32228779]
[1721580513681,2.84312,3517.3,3516.3,3.28908938]
[1721580513858,2.84293,3517.5,3516.4,2.47238103]
[1721580514072,2.84317,3517.2,3516.3,0.81670835]
[1721580514282,2.84301,3517.4,3516.4,0.98890664]
[1721580514461,2.84301,3517.4,3516.5,2.47219943]
[1721580514667,2.84301,3517.4,3516.6,0.31582437]
[1721580514889,2.84311,3517.3,3516.2,2.84990676]
[1721580515088,2.84319,3517.2,3516.3,3.02224412]
[1721580515306,2.84325,3517.1,3516.3,0.55]
[1721580515652,2.84309,3517.3,3516.4,0.98889897]
[1721580516003,2.84294,3517.5,3516.3,0.55]
[1721580516153,2.84283,3517.7,3516.4,1.61327686]
[1721580516355,2.84336,3517.0,3516.4,0.62439568]
[1721580516593,2.84336,3517.0,3516.2,2.2607]
[1721580516790,2.84285,3517.6,3516.2,2.2607]
[1721580516955,0.0647928,3517.9,3516.2,2.2607]
[1721580516956,2.84371,3516.6,3516.2,2.2607]
[1721580517153,0.0647928,3517.9,3516.2,2.2607]
[1721580517154,2.84389,3516.3,3516.2,2.2607]
[1721580517603,0.03117547,3516.3,3516.2,2.2607]
[1721580517806,0.00376953,3516.3,3516.2,2.2607]
[1721580517958,0.00376953,3516.3,3515.7,1.48367869]
[1721580518180,0.00376953,3516.3,3515.6,2.4617]
[1721580518181,2.84438,3515.7,3515.6,2.4617]
[1721580518481,0.0123103,3515.7,3515.6,2.4617]
[1721580518699,0.0316825,3515.7,3515.6,2.4617]
[1721580518915,2.84279,3517.7,3515.6,2.4617]
[1721580519225,2.9074428,3517.9,3515.6,2.4617]
[1721580519226,3.19339,3517.0,3515.7,3.30830798]
[1721580519519,2.8431,3517.3,3515.8,2.47293122]
[1721580519825,2.84277,3517.7,3516.4,0.58920676]
[1721580519826,0.35,3517.6,3516.4,0.58920676]
[1721580519978,0.35,3517.6,3516.4,0.2680545]
[1721580519979,2.84368,3516.6,3516.4,0.2680545]
[1721580520178,2.8432,3517.2,3515.9,2.4617]
[1721580520411,2.9074028,3517.9,3516.2,0.58920676]
[1721580520412,2.8434,3517.0,3516.2,0.58920676]
[1721580520608,2.8434,3517.0,3516.1,0.8962878]
[1721580520609,2.84339,3517.0,3516.6,0.31852697]
[1721580520814,2.84323,3517.2,3516.6,0.31852697]
[1721580520981,0.0647928,3517.9,3516.7,2.4617]
[1721580521179,2.84277,3517.7,3516.8,0.2780227]
[1721580521419,2.84315,3517.3,3516.8,0.2780227]
[1721580521601,0.00311999,3517.2,3516.8,0.2780227]
[1721580521830,2.84297,3517.5,3516.8,0.2780227]
[1721580522008,0.0647928,3517.9,3516.8,0.2780227]
[1721580522009,2.9074028,3517.9,3516.8,0.2780227]
[1721580522195,2.84278,3517.7,3516.8,0.2780227]
[1721580522398,2.84301,3517.4,3516.8,0.2780227]
[1721580522597,2.84273,3517.8,3516.9,0.30582497]
[1721580522800,2.84302,3517.4,3516.9,0.30582497]
[1721580523203,2.84287,3517.6,3516.9,0.30582497]
[1721580523609,2.84268,3517.8,3516.9,0.30582497]
[1721580523828,0.0647928,3517.9,3516.9,0.30582497]
[1721580524126,0.0647928,3517.9,3517.0,0.2767525]
[1721580524288,0.0647928,3517.9,3517.0,3.1200025]
[1721580524493,0.0647928,3517.9,3517.3,0.31852697]
[1721580525230,0.0647928,3517.9,3517.4,2.4617]
[1721580525790,0.0647928,3517.9,3517.4,5.30467]
[1721580526025,0.0647928,3517.9,3517.5,0.30378525]
[1721580526415,0.0647928,3517.9,3517.6,0.05685094]
[1721580526621,0.0647928,3517.9,3517.5,0.30378525]
[1721580526931,0.0647928,3517.9,3517.6,2.84282]
[1721580527117,0.0647928,3517.9,3517.8,2.84268]
[1721580527427,2.84079,3520.2,3517.9,2.4617]
[1721580527737,1.27857205,3521.3,3518.3,2.84227]
[1721580527738,0.2849,3521.1,3518.3,2.84227]
[1721580528025,3.27699828,3521.3,3517.9,2.4617]
[1721580528026,0.35,3519.6,3518.1,2.84238]
[1721580528232,1.7,3520.9,3517.9,2.4617]
[1721580528403,2.84101,3519.9,3518.1,2.4617]
[1721580528604,2.84097,3520.0,3518.3,2.84226]
[1721580528932,0.35,3519.9,3518.8,2.4617]
[1721580529106,2.84067,3520.3,3518.8,2.4617]
[1721580529107,2.84093,3520.0,3518.8,2.4617]
[1721580529326,2.84075,3520.2,3518.9,3.82990873]
[1721580529505,2.84075,3520.2,3518.9,2.84177]
[1721580529704,2.84075,3520.2,3519.0,0.30378525]
[1721580530121,2.84111,3519.8,3519.0,0.30378525]
[1721580530317,2.84034,3520.8,3519.0,0.30378525]
[1721580530318,2.84098,3520.0,3519.0,0.30378525]
[1721580530632,2.84117,3519.7,3519.0,0.30378525]
[1721580530841,2.84123,3519.6,3519.0,0.30378525]
[1721580530998,3.0,3520.7,3518.8,2.4617]
[1721580531192,2.84127,3519.6,3518.8,2.4617]
[1721580531389,2.84167,3519.1,3518.8,2.4617]
[1721580531693,2.84124,3519.6,3518.8,2.4617]
[1721580531891,3.0,3520.7,3518.8,2.4617]
[1721580532093,3.0,3520.3,3518.8,2.70787]
[1721580532297,2.84074,3520.2,3518.8,2.70787]
[1721580532498,2.84134,3519.5,3518.8,2.70787]
[1721580532800,5.68246,3519.6,3519.5,0.31852697]
[1721580533516,11.52369,3519.6,3519.5,0.31852697]
[1721580533852,11.87369,3519.6,3519.5,0.31852697]
[1721580534014,14.71492,3519.6,3519.5,0.31852697]
[1721580534209,11.36524,3519.5,3519.4,6.97e-06]
[1721580534410,11.36524,3519.5,3518.2,2.4617]
[1721580534411,2.84228,3518.3,3518.2,2.4617]
[1721580534651,2.84236,3518.2,3517.1,2.4617]
[1721580534853,2.84204,3518.6,3517.1,2.4617]
[1721580535153,2.84207,3518.6,3517.3,2.4617]
[1721580535314,2.84187,3518.9,3517.3,2.4617]
[1721580535515,2.84202,3518.7,3517.5,2.84291]
[1721580535754,2.84226,3518.4,3517.3,2.4617]
[1721580536067,3.0,3518.8,3517.4,0.24617]
[1721580536068,2.84228,3518.3,3517.4,0.24617]
[1721580536228,1.471524,3519.5,3517.5,2.3565]
[1721580536429,2.84087,3520.1,3517.5,2.3565]
[1721580536430,0.35,3519.1,3517.5,2.3565]
[1721580536664,2.84218,3518.5,3517.5,2.3565]
[1721580537161,2.84207,3518.6,3517.5,2.3565]
[1721580537949,2.84188,3518.8,3517.6,2.8428]
[1721580538179,2.84204,3518.6,3517.5,2.3565]
[1721580538385,2.84237,3518.2,3517.5,2.3565]
[1721580538539,2.8422,3518.4,3517.5,2.3565]
[1721580538739,2.84216,3518.5,3517.5,2.3565]
[1721580538952,2.84212,3518.5,3517.5,2.3565]
[1721580539281,2.842,3518.7,3517.5,2.3565]
[1721580539571,2.84207,3518.6,3517.6,0.260267]
[1721580539885,3.1262,3518.7,3517.6,0.260267]
[1721580539886,2.84212,3518.5,3517.6,0.260267]
[1721580540294,2.84234,3518.3,3517.6,0.260267]
[1721580540455,2.84203,3518.6,3517.6,0.260267]
[1721580540665,2.84246,3518.1,3517.5,2.3565]
[1721580541160,2.84261,3517.9,3517.5,2.3565]
[1721580541486,2.84246,3518.1,3517.5,2.3565]
[1721580541650,2.84238,3518.2,3517.5,2.3565]
[1721580541857,2.84252,3518.0,3517.5,2.3565]
[1721580542086,0.2842,3518.7,3517.5,2.3565]
[1721580542087,2.84262,3517.9,3517.5,2.3565]
[1721580542290,2.84284,3517.6,3517.5,2.3565]
[1721580542491,2.84308,3517.4,3516.1,2.4414]
[1721580542787,2.843,3517.4,3516.1,2.4414]
[1721580542973,2.84346,3516.9,3516.1,2.4414]
[1721580543292,2.84358,3516.7,3516.1,2.4414]
[1721580543452,2.84358,3516.7,3516.2,0.24414]
[1721580543654,2.84283,3517.7,3516.2,0.24414]
[1721580543888,0.568506,3517.9,3516.2,0.24414]
[1721580543889,2.84285,3517.6,3516.3,0.05687131]
[1721580544184,2.84293,3517.5,3516.4,2.4414]
[1721580544406,2.84331,3517.1,3516.4,2.4414]
[1721580544588,2.84334,3517.0,3516.4,2.4414]
[1721580544792,3.411106,3517.9,3516.4,2.4414]
[1721580544793,2.84342,3516.9,3516.4,2.4414]
[1721580544955,2.8435,3516.8,3516.4,2.4414]
[1721580545150,2.84365,3516.7,3516.4,2.4414]
[1721580545404,2.84373,3516.5,3516.4,2.4414]
[1721580545554,5.68746,3516.5,3516.4,2.4414]
[1721580546176,3.0,3517.5,3515.5,2.4414]
[1721580546177,2.84325,3517.1,3515.5,2.4414]
[1721580546374,3.284325,3517.0,3515.5,2.4414]
[1721580546574,2.84413,3516.1,3515.5,2.4414]
[1721580546915,2.84423,3515.9,3515.5,2.4414]
[1721580547101,2.84436,3515.8,3515.5,2.4414]
[1721580547261,2.8505357,3515.8,3515.5,2.4414]
[1721580547461,2.84436,3515.8,3515.5,2.4414]
[1721580547688,2.84446,3515.6,3515.5,2.4414]
[1721580548059,2.8447,3515.3,3514.9,2.4414]
[1721580548484,0.00562512,3515.2,3514.9,2.4414]
[1721580548688,2.8447,3515.3,3514.9,2.4414]
[1721580548924,2.88818471,3515.2,3514.9,2.4414]
[1721580549300,2.86425083,3515.2,3514.9,2.4414]
[1721580549502,2.88507577,3515.2,3514.9,2.4414]
[1721580549831,2.86424083,3515.2,3514.9,2.4414]
[1721580550131,2.8881223,3515.2,3514.9,2.4414]
[1721580550342,2.86424083,3515.2,3514.9,2.4414]
[1721580550491,2.84487,3515.1,3514.9,2.4414]
[1721580550687,0.03127506,3515.0,3514.9,2.4414]
[1721580550926,0.00464678,3515.0,3514.9,2.4414]
[1721580551311,0.03845126,3515.0,3514.5,2.4414]
[1721580551828,3.0,3516.3,3514.6,0.0568982]
[1721580551992,0.35,3516.0,3515.0,2.4414]
[1721580552193,0.02953311,3516.2,3515.0,2.4414]
[1721580552536,2.84342,3516.9,3515.0,2.4414]
[1721580552537,2.84454,3515.6,3515.0,2.4414]
[1721580552721,2.8448,3515.2,3515.0,2.4414]
[1721580552920,2.84486,3515.1,3515.0,2.4414]
[1721580553096,0.03681808,3515.1,3515.0,2.4414]
[1721580553303,2.84435,3515.8,3515.0,2.4414]
[1721580553505,0.03843871,3515.7,3515.0,2.4414]
[1721580553711,0.35,3515.9,3515.0,2.4414]
[1721580553933,3.0,3516.7,3515.0,2.4414]
[1721580553934,0.00808996,3515.8,3515.0,2.4414]
[1721580554146,2.85239996,3515.8,3515.0,2.4414]
[1721580554455,2.84406,3516.1,3515.0,2.4414]
[1721580554606,0.00854827,3515.7,3515.1,0.528647]
[1721580554807,2.84405,3516.2,3515.1,0.528647]
[1721580555151,2.84409,3516.1,3515.1,0.528647]
[1721580555359,0.00205814,3516.1,3515.1,0.528647]
[1721580555524,0.00205814,3516.1,3515.2,0.55]
[1721580555742,2.84381,3516.5,3515.3,0.60388572]
[1721580555946,0.00368054,3516.0,3515.3,0.60388572]
[1721580556161,2.84374,3516.5,3515.3,0.60388572]
[1721580556481,2.84347,3516.9,3515.4,5.17402]
[1721580556645,2.84334,3517.0,3515.8,2.84422]
[1721580556844,2.84334,3517.0,3515.7,2.3294]
[1721580556845,2.84348,3516.9,3515.7,2.3294]
[1721580557045,2.84319,3517.2,3515.7,2.3294]
[1721580557247,2.84328,3517.1,3515.8,0.55]
[1721580557443,2.84309,3517.3,3515.9,0.57805716]
[1721580557650,2.8432,3517.2,3515.9,0.57805716]
[1721580558259,2.8431,3517.3,3516.0,0.05687159]
[1721580558459,2.84302,3517.4,3516.1,2.3294]
[1721580558658,2.84293,3517.5,3516.2,0.05687142]
[1721580558858,2.84325,3517.1,3516.3,0.52303814]
[1721580559166,2.84313,3517.3,3516.3,0.05687146]
[1721580559347,3.411176,3517.9,3516.1,2.3294]
[1721580559553,2.84335,3517.0,3516.1,2.3294]
[1721580559983,2.84318,3517.2,3516.1,2.3294]
[1721580560189,2.84326,3517.1,3516.1,2.3294]
[1721580560478,2.84364,3516.7,3516.1,2.3294]
[1721580560680,2.84383,3516.4,3516.1,2.3294]
[1721580560863,2.8436,3516.7,3516.1,2.3294]
[1721580561064,0.00214033,3516.3,3516.1,2.3294]
[1721580561268,5.84286,3517.6,3516.1,2.3294]
[1721580561269,3.0,3517.6,3516.1,2.3294]
[1721580561440,2.84397,3516.2,3516.1,2.3294]
[1721580561776,0.00376263,3516.2,3516.1,2.3294]
[1721580562166,0.568506,3517.9,3516.1,2.3294]
[1721580562377,2.84317,3517.2,3516.1,2.3294]
[1721580562686,2.84342,3516.9,3516.1,2.3294]
[1721580562979,2.84357,3516.7,3516.1,2.3294]
[1721580563568,0.568506,3517.9,3516.1,2.3294]
[1721580563774,2.84375,3516.5,3516.1,9.6294]